bitfinex/quotes_SOLUSD_20251013
["timestamp","ask_amount","ask_price","bid_price","bid_amount"]
[1760338963744,0.09750055,197.17,197.16,0.65000001]
[1760338964044,5.16926603,197.17,197.16,0.65000001]
[1760338965163,0.09750055,197.17,197.16,0.65000001]
[1760338965664,0.09750055,197.17,197.16,10.23620615]
[1760338965985,0.10550591,197.19,197.17,10.87647521]
[1760338966152,0.10550591,197.19,197.18,20.46268135]
[1760338966338,0.10550591,197.19,197.18,21.15268135]
[1760338966535,0.10470463,197.2,197.19,10.87647521]
[1760338966761,0.10470463,197.2,197.19,21.15268135]
[1760338967267,0.10470463,197.2,197.19,26.22393242]
[1760338968769,0.10470463,197.2,197.19,11.56647521]
[1760338968945,0.10470463,197.2,197.17,11.56647521]
[1760338969348,0.10470463,197.2,197.18,10.27620614]
[1760338969556,0.10470463,197.2,197.19,9.58620614]
[1760338969752,0.10470463,197.2,197.19,10.27620614]
[1760338969946,0.10470463,197.2,197.18,9.58620614]
[1760338970347,0.10470463,197.2,197.17,10.87647521]
[1760338970841,5.17575354,197.2,197.17,10.87647521]
[1760338971062,5.17575354,197.2,197.16,1e-08]
[1760338971253,5.17575354,197.2,197.16,10.27620615]
[1760338971761,0.10865807,197.17,197.16,21.15268136]
[1760338971962,0.10865807,197.17,197.16,10.87647522]
[1760338973360,0.10865807,197.17,197.16,1e-08]
[1760338973564,15.45662969,197.17,197.16,1e-08]
[1760338973766,5.87042355,197.17,197.16,1e-08]
[1760338974874,0.10865807,197.17,197.16,1e-08]
[1760338975372,0.10865807,197.17,197.16,0.69000001]
[1760338975674,0.10865807,197.17,197.16,10.27620615]
[1760338976646,0.10865807,197.17,197.16,26.22470408]
[1760338977248,0.10865807,197.17,197.16,16.63849794]
[1760338977452,0.10865807,197.17,197.16,17.9942834]
[1760338977651,0.10865807,197.17,197.16,10.87647522]
[1760338978170,0.10865807,197.17,197.16,17.9942834]
[1760338978856,0.10865807,197.17,197.16,23.06630612]
[1760338980273,0.10865807,197.17,197.16,16.63849794]
[1760338980455,5.18042355,197.17,197.16,1e-08]
[1760338980657,12.29823173,197.17,197.16,1e-08]
[1760338980856,0.10865807,197.17,197.16,1e-08]
[1760338981188,12.29823173,197.17,197.16,1e-08]
[1760338981350,0.10865807,197.17,197.16,1e-08]
[1760338982577,5.87042355,197.17,197.16,1e-08]
[1760338982778,5.18042355,197.17,197.16,1e-08]
[1760338983363,12.29823173,197.17,197.16,1e-08]
[1760338984079,5.87042355,197.17,197.16,1e-08]
[1760338984256,12.29823173,197.17,197.16,1e-08]
[1760338985666,0.10865807,197.17,197.16,1e-08]
[1760338985889,0.10865807,197.17,197.16,6.42780819]
[1760338986257,0.10865807,197.17,197.16,0.69000001]
[1760338986576,0.10865807,197.17,197.16,7.11780819]
[1760338987282,0.10865807,197.17,197.16,17.3042834]
[1760338987468,0.10865807,197.17,197.16,10.87647522]
[1760338988559,7.22646625,197.17,197.16,1e-08]
[1760338989381,12.29823173,197.17,197.16,1e-08]
[1760338990756,5.18042355,197.17,197.16,1e-08]
[1760338990957,12.29823173,197.17,197.16,1e-08]
[1760338991362,0.10865807,197.17,197.16,0.69000001]
[1760338991655,0.20836476,197.17,197.16,10.87647522]
[1760338992172,0.09970669,197.17,197.16,10.87647522]
[1760338992882,0.09970669,197.17,197.16,17.3042834]
[1760338993063,0.09970669,197.17,197.16,10.87647522]
[1760338994578,0.78970669,197.17,197.16,1e-08]
[1760338995069,0.09970669,197.17,197.16,1e-08]
[1760338997061,0.09970669,197.17,197.16,7.11780819]
[1760338997270,0.09970669,197.17,197.16,6.42780819]
[1760338997472,0.09970669,197.17,197.16,1e-08]
[1760338997869,0.09970669,197.17,197.16,17.9942834]
[1760338999180,0.09970669,197.17,197.16,23.06630612]
[1760339000965,0.09970669,197.17,197.16,22.37630612]
[1760339001792,0.09970669,197.17,197.16,23.06630612]
[1760339003589,0.74970669,197.17,197.16,96.34849794]
[1760339003768,0.09970669,197.17,197.16,96.34849794]
[1760339004287,0.09970669,197.17,197.16,102.77630612]
[1760339004985,0.09970669,197.17,197.16,103.46630612]
[1760339007397,0.09803848,197.18,197.17,10.87647521]
[1760339007581,0.09803848,197.18,197.17,98.39428339]
[1760339008169,0.09258034,197.2,197.19,10.87647521]
[1760339008170,1e-08,197.2,197.19,10.87647521]
[1760339008374,0.1031483,197.21,197.19,17.81140849]
[1760339008676,0.1031483,197.21,197.2,17.99428339]
[1760339009468,0.1031483,197.21,197.2,23.0652773]
[1760339011681,0.20227077,197.21,197.2,23.0652773]
[1760339011886,0.09912247,197.21,197.2,23.0652773]
[1760339012089,0.09912247,197.21,197.2,23.57237669]
[1760339012679,0.09912247,197.21,197.2,15.94746912]
[1760339012896,0.09912247,197.21,197.2,23.0652773]
[1760339013096,0.09912247,197.21,197.2,23.57237669]
[1760339013793,0.09526153,197.22,197.21,38.10428339]
[1760339013995,0.09526153,197.22,197.21,38.79428339]
[1760339014194,0.09526153,197.22,197.21,36.74721198]
[1760339014394,0.09526153,197.22,197.21,43.17502016]
[1760339016193,0.09526153,197.22,197.21,22.37502016]
[1760339017421,0.74526153,197.22,197.21,22.37502016]
[1760339017585,0.74526153,197.22,197.21,10.87647521]
[1760339017781,0.74526153,197.22,197.19,10.87647521]
[1760339017981,0.65,197.21,197.19,17.30428339]
[1760339018200,0.65,197.2,197.18,10.87647521]
[1760339018388,0.65,197.19,197.18,10.87647521]
[1760339018908,0.65,197.19,197.17,10.87647521]
[1760339019080,0.65,197.18,197.16,10.87647522]
[1760339019280,0.65,197.17,197.16,10.87647522]
[1760339019680,0.65,197.17,197.16,15.94849794]
[1760339020312,0.65,197.17,197.16,22.37630612]
[1760339020476,0.65,197.19,197.16,22.37630612]
[1760339020681,0.65,197.19,197.17,6.42780818]
[1760339020903,0.65,197.18,197.17,17.30428339]
[1760339021120,0.65,197.18,197.17,10.87647521]
[1760339021411,11.59363453,197.22,197.17,10.87647521]
[1760339021580,7.07780818,197.21,197.16,1e-08]
[1760339021783,6.42780818,197.19,197.16,1e-08]
[1760339021985,6.42780818,197.17,197.14,0.2]
[1760339022205,6.42780818,197.15,197.14,0.2]
[1760339022595,7.07780818,197.15,197.14,0.2]
[1760339023286,32.95008816,197.15,197.14,0.2]
[1760339024504,12.15008816,197.15,197.14,0.2]
[1760339024681,20.8,197.13,197.12,0.2]
[1760339024879,27.22780818,197.13,197.12,0.2]
[1760339025096,27.90780818,197.13,197.12,0.2]
[1760339025309,32.98060278,197.13,197.12,0.2]
[1760339031109,45.66258928,197.13,197.01,10.87647521]
[1760339031317,6.42780818,197.02,197.01,10.87647521]
[1760339031624,6.42780818,197.02,196.99,0.2]
[1760339031827,6.53338883,197.02,196.99,0.2]
[1760339032026,6.53338883,197.02,197.0,10.87647521]
[1760339032321,6.53338883,197.02,196.99,0.2]
[1760339032620,0.10558065,197.02,196.99,0.2]
[1760339032827,6.42780818,197.0,196.99,0.2]
[1760339033126,0.10558065,197.02,196.99,0.86]
[1760339033300,6.53338883,197.02,196.99,0.2]
[1760339033500,0.10558065,197.02,196.99,0.2]
[1760339033805,6.53338883,197.02,196.99,0.2]
[1760339034827,0.10558065,197.02,197.0,0.66]
[1760339035007,0.10558065,197.02,196.99,5.27631669]
[1760339035321,0.10558065,197.02,196.99,5.93631669]
[1760339036339,0.10558065,197.02,196.99,5.27631669]
[1760339036525,6.53338883,197.02,196.99,5.27631669]
[1760339036904,7.24338883,197.02,196.99,0.2]
[1760339037226,6.53338883,197.02,196.99,5.27638171]
[1760339037404,9.70019964,197.02,196.99,5.27638171]
[1760339037606,9.70019964,197.02,196.99,5.93638171]
[1760339037828,0.10558065,197.02,196.99,5.93638171]
[1760339038329,9.70019964,197.02,196.99,0.2]
[1760339038516,9.59461899,197.0,196.99,0.2]
[1760339038916,10.30461899,197.0,196.99,0.2]
[1760339039722,9.59461899,197.0,196.99,0.2]
[1760339040030,12.24819813,197.01,196.99,0.2]
[1760339040231,9.59461899,197.0,196.99,0.2]
[1760339040433,3.36357914,197.01,196.99,0.2]
[1760339040607,12.24819813,197.01,196.99,0.2]
[1760339040808,12.95819813,197.01,196.99,0.2]
[1760339041309,12.24819813,197.01,196.99,0.2]
[1760339041918,2.65357914,197.01,196.99,0.2]
[1760339043430,12.24819813,197.01,196.99,0.2]
[1760339044232,10.30461899,197.0,196.99,0.2]
[1760339044409,31.10461899,197.0,196.99,0.2]
[1760339044610,31.10461899,197.0,196.96,0.2]
[1760339044611,20.8,196.97,196.96,0.2]
[1760339044913,30.39461899,196.97,196.96,0.2]
[1760339045113,0.71,196.97,196.96,0.2]
[1760339045335,15.38153425,196.97,196.96,0.2]
[1760339046010,36.18153425,196.97,196.96,0.2]
[1760339046329,36.18153425,196.97,196.85,10.87647521]
[1760339046330,20.8,196.94,196.85,10.87647521]
[1760339046634,9.59461899,196.91,196.87,0.66]
[1760339046831,30.39461899,196.94,196.89,10.87647521]
[1760339047022,30.39461899,196.96,196.91,9.59461899]
[1760339047329,9.59461899,196.95,196.87,10.87647521]
[1760339047526,9.59461899,196.93,196.87,10.87647521]
[1760339047732,9.59461899,196.93,196.87,21.1310942]
[1760339047923,0.71,196.94,196.89,10.87647521]
[1760339048133,10.30461899,196.94,196.89,10.87647521]
[1760339048330,10.30461899,196.94,196.9,0.66]
[1760339048633,9.59461899,196.94,196.9,0.66]
[1760339049020,10.30461899,196.94,196.9,0.66]
[1760339049516,10.30461899,196.94,196.9,5.7386354]
[1760339049715,9.59461899,196.95,196.9,5.0786354]
[1760339049922,9.59461899,196.95,196.91,0.66]
[1760339050122,9.59461899,196.95,196.89,5.73896813]
[1760339050123,0.71,196.95,196.89,5.73896813]
[1760339050313,9.59461899,196.94,196.89,5.73896813]
[1760339050511,9.59461899,196.94,196.9,0.66]
[1760339051239,10.30461899,196.93,196.87,5.73924794]
[1760339051429,10.30461899,196.93,196.88,10.87647521]
[1760339051430,9.59461899,196.92,196.88,10.87647521]
[1760339051626,5.07768961,196.94,196.88,10.87647521]
[1760339051831,0.10536874,196.9,196.89,11.53647521]
[1760339052033,0.10536874,196.9,196.88,10.87647521]
[1760339052236,0.10536874,196.9,196.88,11.53647521]
[1760339052545,0.10536874,196.9,196.88,15.955678]
[1760339052845,0.10536874,196.9,196.89,0.66]
[1760339053022,0.10536874,196.9,196.89,10.25461899]
[1760339053338,0.09973446,196.91,196.89,10.25461899]
[1760339053339,0.09973446,196.91,196.89,0.66]
[1760339053522,0.09973446,196.91,196.9,20.4710942]
[1760339053832,0.11126177,196.92,196.91,10.87647521]
[1760339054040,0.10594542,196.93,196.91,21.1310942]
[1760339054225,1e-08,196.93,196.92,11.53647521]
[1760339054430,0.1030451,196.97,196.95,31.67647521]
[1760339054729,0.1030451,196.97,196.95,46.34852502]
[1760339054929,1e-08,196.97,196.96,10.87647521]
[1760339055132,0.71,197.13,196.99,20.8]
[1760339055442,0.71,197.13,197.09,9.59461899]
[1760339055636,9.59461899,197.17,197.11,9.59461899]
[1760339055834,10.30461899,197.16,197.1,9.59461899]
[1760339056031,21.51,197.15,197.1,9.59461899]
[1760339056231,0.71,197.14,197.1,9.59461899]
[1760339056921,0.71,197.17,197.12,9.59461899]
[1760339057126,0.71,197.16,197.12,9.59461899]
[1760339057533,0.71,197.16,197.13,9.59461899]
[1760339057733,0.71,197.16,197.12,9.59461899]
[1760339057929,20.8,197.17,197.12,9.59461899]
[1760339058131,0.71,197.17,197.13,9.59461899]
[1760339058439,21.51,197.17,197.12,10.25461899]
[1760339058743,10.30461899,197.16,197.11,9.59461899]
[1760339058921,20.8,197.17,197.12,9.59461899]
[1760339059124,21.51,197.17,197.12,9.59461899]
[1760339059525,2.65163883,197.16,197.12,9.59461899]
[1760339059742,2.65163883,197.16,197.14,9.59461899]
[1760339059946,2.65163883,197.16,197.15,20.4710942]
[1760339060146,2.65163883,197.16,197.15,25.54337418]
[1760339060338,2.65163883,197.16,197.15,26.20337418]
[1760339062147,2.65163883,197.16,197.15,16.60875519]
[1760339062448,2.65163883,197.16,197.14,10.87647521]
[1760339063032,2.65163883,197.16,197.15,9.59461899]
[1760339063239,2.65163883,197.16,197.15,10.25461899]
[1760339063734,2.65163883,197.16,197.15,0.66]
[1760339063937,2.65163883,197.16,197.15,10.25461899]
[1760339064245,2.65163883,197.16,197.15,15.32689897]
[1760339066346,2.65163883,197.16,197.15,26.20337418]
[1760339068643,0.71,197.24,197.16,10.87647521]
[1760339068845,0.71,197.23,197.2,9.59461899]
[1760339069150,0.71,197.22,197.2,9.59461899]
[1760339069344,0.71,197.22,197.19,9.59461899]
[1760339069655,0.71,197.21,197.19,10.87647521]
[1760339069856,0.71,197.2,197.19,10.87647521]
[1760339070053,0.71,197.2,197.13,10.87647521]
[1760339070252,0.71,197.19,197.16,10.87647521]
[1760339071955,0.11075433,197.17,197.16,25.54311692]
[1760339072452,0.11075433,197.17,197.16,26.20311692]
[1760339075538,0.0997375,197.18,197.16,26.20311692]
[1760339075745,0.0997375,197.18,197.17,21.1310942]
[1760339075949,0.10971833,197.19,197.18,10.87647521]
[1760339076152,0.09147008,197.2,197.19,9.59461899]
[1760339076352,0.0970202,197.21,197.19,10.76174409]
[1760339076552,0.0970202,197.21,197.2,21.1310942]
[1760339076754,0.10956163,197.24,197.2,21.1310942]
[1760339076934,0.09620612,197.26,197.23,41.2710942]
[1760339077138,0.09620612,197.26,197.24,21.63809075]
[1760339077457,1e-08,197.25,197.24,26.70805627]
[1760339077846,1e-08,197.25,197.24,36.30267526]
[1760339078156,1e-08,197.25,197.24,26.70805627]
[1760339078741,1e-08,197.26,197.25,31.67647521]
[1760339078944,1e-08,197.26,197.25,51.52571319]
[1760339080733,1e-08,197.26,197.25,56.59542168]
[1760339081353,2.64888173,197.32,197.28,20.8]
[1760339081563,0.1,197.36,197.32,10.87647521]
[1760339081860,2.74836045,197.36,197.32,20.4710942]
[1760339082046,2.74836045,197.36,197.32,21.1310942]
[1760339082856,2.74836045,197.36,197.32,26.19900419]
[1760339084949,0.1,197.36,197.32,26.19900419]
[1760339085459,2.74804779,197.39,197.36,10.87647521]
[1760339085652,0.1,197.39,197.38,41.2710942]
[1760339085858,0.1,197.39,197.38,41.9510942]
[1760339086161,0.1,197.4,197.39,10.87647521]
[1760339086354,0.1,197.4,197.39,11.55647521]
[1760339086554,0.1,197.4,197.39,21.1510942]
[1760339086949,1e-08,197.4,197.39,30.77571319]
[1760339087260,1e-08,197.42,197.41,10.87647521]
[1760339087452,1e-08,197.42,197.41,20.4710942]
[1760339087651,1e-08,197.42,197.41,21.1810942]
[1760339088047,0.1,197.45,197.44,10.87647521]
[1760339088243,0.1,197.45,197.44,20.4710942]
[1760339088460,0.1,197.45,197.44,21.1810942]
[1760339089362,0.1,197.45,197.44,26.24592402]
[1760339089564,0.1,197.52,197.48,10.87647521]
[1760339089876,0.1,197.52,197.48,20.4710942]
[1760339089877,3.33650301,197.51,197.48,20.4710942]
[1760339090078,0.69,197.5,197.48,20.4710942]
[1760339090369,2.64650301,197.51,197.48,20.4710942]
[1760339090370,0.69,197.49,197.48,20.4710942]
[1760339090944,10.28461899,197.49,197.43,9.59461899]
[1760339091143,0.69,197.48,197.44,9.59461899]
[1760339091340,0.69,197.47,197.46,10.87647521]
[1760339091767,0.09140807,197.46,197.45,10.87647521]
[1760339092064,0.78140807,197.46,197.45,20.4710942]
[1760339092445,0.78140807,197.46,197.45,10.87647521]
[1760339092754,0.78140807,197.46,197.42,5.06527436]
[1760339092947,0.69,197.45,197.44,9.59461899]
[1760339093153,0.09140807,197.46,197.45,10.87647521]
[1760339093354,0.78140807,197.46,197.45,20.4710942]
[1760339093858,0.78140807,197.46,197.43,15.94154498]
[1760339094066,0.78140807,197.46,197.45,9.59461899]
[1760339094366,5.15576131,197.46,197.4,10.87647521]
[1760339094550,5.15576131,197.46,197.41,9.59461899]
[1760339094860,0.69,197.45,197.4,9.59461899]
[1760339095068,0.69,197.44,197.4,9.59461899]
[1760339095267,0.69,197.43,197.4,9.59461899]
[1760339095464,0.69,197.43,197.42,10.87647521]
[1760339095779,0.69,197.43,197.37,5.06639027]
[1760339095949,5.15576131,197.46,197.42,10.87647521]
[1760339095950,0.78140807,197.46,197.42,10.87647521]
[1760339096150,0.69,197.45,197.42,20.4710942]
[1760339096344,0.69,197.44,197.43,10.87647521]
[1760339096570,0.09140807,197.46,197.43,10.87647521]
[1760339096571,0.09140807,197.46,197.44,10.87647521]
[1760339096748,0.78140807,197.46,197.45,9.59461899]
[1760339096952,0.09140807,197.46,197.45,20.4710942]
[1760339097386,0.09140807,197.46,197.45,17.99375614]
[1760339097766,0.09140807,197.46,197.45,17.28375614]
[1760339098071,0.09140807,197.46,197.45,23.05832944]
[1760339100881,0.09140807,197.46,197.45,16.44750584]
[1760339101072,0.09140807,197.46,197.45,22.34832944]
[1760339101562,0.09140807,197.46,197.45,23.05832944]
[1760339102263,0.09140807,197.46,197.45,22.34832944]
[1760339103270,0.09140807,197.46,197.45,23.05832944]
[1760339103460,0.09140807,197.46,197.45,23.56478677]
[1760339103667,1e-08,197.46,197.45,23.56478677]
[1760339103983,1e-08,197.46,197.45,23.05832944]
[1760339106188,0.10992365,197.49,197.48,10.87647521]
[1760339106488,0.10992365,197.49,197.48,17.28375614]
[1760339106670,0.10992365,197.49,197.48,17.99375614]
[1760339107377,0.10992365,197.49,197.48,23.05756006]
[1760339108601,0.10992365,197.49,197.48,22.34756006]
[1760339108781,0.79992365,197.49,197.48,15.94027913]
[1760339108987,0.79992365,197.49,197.48,22.34756006]
[1760339109366,0.79992365,197.49,197.46,10.87647521]
[1760339109692,0.69,197.48,197.46,10.87647521]
[1760339109870,0.69,197.47,197.46,10.87647521]
[1760339111598,0.69,197.47,197.39,12.66513324]
[1760339111769,0.69,197.46,197.41,6.40728093]
[1760339111973,0.69,197.45,197.4,6.40728093]
[1760339112177,0.69,197.44,197.4,6.40728093]
[1760339112472,0.69,197.43,197.4,10.87647521]
[1760339112676,0.69,197.42,197.4,10.87647521]
[1760339112874,0.69,197.41,197.4,10.87647521]
[1760339113293,0.69,197.41,197.37,6.40728093]
[1760339113470,0.69,197.4,197.37,6.40728093]
[1760339113676,0.69,197.4,197.37,11.47377205]
[1760339113978,0.69,197.39,197.38,6.40728093]
[1760339114490,0.69,197.44,197.39,10.87647521]
[1760339114697,0.69,197.43,197.42,10.87647521]
[1760339114873,0.69,197.43,197.36,5.0668802]
[1760339115074,7.09728093,197.42,197.37,10.87647521]
[1760339115276,0.69,197.41,197.39,10.87647521]
[1760339115799,0.69,197.41,197.39,6.40728093]
[1760339116179,0.69,197.41,197.4,17.28375614]
[1760339116497,0.69,197.41,197.4,10.87647521]
[1760339118705,12.16312861,197.41,197.31,10.87647521]
[1760339118904,7.11728093,197.4,197.31,10.87647521]
[1760339119089,0.71,197.39,197.34,10.87647521]
[1760339119394,7.11728093,197.38,197.33,10.87647521]
[1760339119579,0.71,197.37,197.33,10.87647521]
[1760339119776,0.71,197.36,197.33,10.87647521]
[1760339120081,0.71,197.35,197.31,10.87647521]
[1760339120280,0.71,197.34,197.31,10.87647521]
[1760339120483,0.71,197.33,197.31,10.87647521]
[1760339120901,6.40728093,197.35,197.31,10.87647521]
[1760339120902,11.47449264,197.35,197.31,10.87647521]
[1760339121096,0.71,197.32,197.31,10.87647521]
[1760339121881,0.71,197.35,197.31,10.87647521]
[1760339122081,0.71,197.34,197.31,10.87647521]
[1760339122297,0.71,197.37,197.32,6.40728093]
[1760339122594,0.71,197.36,197.32,6.40728093]
[1760339122802,5.06662613,197.37,197.32,6.40728093]
[1760339122991,0.71,197.36,197.32,6.40728093]
[1760339123192,0.71,197.35,197.32,6.40728093]
[1760339123816,0.71,197.35,197.31,10.87647521]
[1760339124109,0.71,197.34,197.31,10.87647521]
[1760339124409,6.40728093,197.32,197.25,0.2]
[1760339124702,6.40728093,197.3,197.25,0.2]
[1760339124902,5.06868062,197.29,197.25,0.2]
[1760339125206,12.18596155,197.29,197.25,0.2]
[1760339125401,0.71,197.28,197.25,0.2]
[1760339125592,0.71,197.28,197.25,6.60728093]
[1760339125790,20.8,197.31,197.27,6.40728093]
[1760339126004,20.8,197.3,197.28,6.40728093]
[1760339126302,21.51,197.3,197.27,6.40728093]
[1760339126506,21.51,197.3,197.28,10.87647521]
[1760339126706,21.51,197.3,197.28,6.40728093]
[1760339127516,20.8,197.3,197.28,6.40728093]
[1760339128387,20.8,197.3,197.29,6.40728093]
[1760339128704,0.71,197.36,197.3,10.87647521]
[1760339129007,20.8,197.34,197.31,6.40728093]
[1760339129384,0.71,197.34,197.31,6.40728093]
[1760339129705,21.51,197.34,197.32,6.40728093]
[1760339130009,0.71,197.33,197.3,17.28375614]
[1760339130179,0.71,197.32,197.29,17.28375614]
[1760339130520,32.27481016,197.34,197.26,5.06921093]
[1760339130720,0.71,197.31,197.28,6.40728093]
[1760339131008,0.71,197.33,197.29,10.87647521]
[1760339131308,0.71,197.32,197.29,10.87647521]
[1760339131808,0.0915829,197.31,197.29,5.73867237]
[1760339131992,0.0915829,197.31,197.3,7.07728093]
[1760339132309,0.0915829,197.31,197.29,5.73867237]
[1760339132506,0.0915829,197.31,197.3,6.40728093]
[1760339134313,0.0915829,197.31,197.3,23.02217986]
[1760339134611,0.0915829,197.31,197.3,17.28375614]
[1760339134909,0.0915829,197.31,197.3,22.35217986]
[1760339135602,0.0915829,197.31,197.3,23.02217986]
[1760339137184,0.09285946,197.34,197.33,31.67647521]
[1760339137409,0.10769842,197.35,197.34,10.87647521]
[1760339137615,0.10769842,197.35,197.34,17.28375614]
[1760339137909,0.81769842,197.35,197.3,17.73948302]
[1760339138091,0.71,197.34,197.33,10.87647521]
[1760339138289,0.71,197.34,197.32,10.87647521]
[1760339138630,0.71,197.34,197.32,17.28375614]
[1760339139405,0.71,197.34,197.3,10.87647521]
[1760339139609,0.10769842,197.35,197.32,6.40728093]
[1760339139913,0.10769842,197.35,197.33,6.40728093]
[1760339140102,0.81769842,197.35,197.34,10.87647521]
[1760339140603,7.22497935,197.35,197.3,17.28375614]
[1760339140798,0.71,197.34,197.3,17.28375614]
[1760339141003,0.71,197.33,197.3,10.87647521]
[1760339141293,7.11728093,197.32,197.28,10.87647521]
[1760339141495,0.71,197.31,197.28,17.28375614]
[1760339141911,20.8,197.32,197.3,6.40728093]
[1760339142218,0.71,197.32,197.3,6.40728093]
[1760339142431,0.71,197.31,197.26,10.87647521]
[1760339142612,21.51,197.33,197.3,6.40728093]
[1760339142921,0.71,197.32,197.25,0.2]
[1760339143113,0.71,197.32,197.28,6.40728093]
[1760339143313,0.71,197.31,197.28,6.40728093]
[1760339143631,21.51,197.33,197.29,6.40728093]
[1760339143818,0.71,197.32,197.29,6.40728093]
[1760339144007,0.71,197.32,197.3,6.40728093]
[1760339144207,0.10769842,197.35,197.31,7.07728093]
[1760339144521,0.10769842,197.35,197.34,6.40728093]
[1760339145433,0.10769842,197.35,197.34,7.07728093]
[1760339146120,0.10769842,197.35,197.34,23.02115251]
[1760339146305,0.10769842,197.35,197.34,16.61387158]
[1760339146505,0.10769842,197.35,197.34,23.02115251]
[1760339147228,1e-08,197.38,197.37,20.8]
[1760339147524,0.68,197.47,197.37,20.8]
[1760339147525,0.68,197.47,197.38,10.87647521]
[1760339147722,2.64732896,197.45,197.4,10.87647521]
[1760339147930,3.32732896,197.45,197.43,6.40728093]
[1760339150032,7.08728093,197.44,197.36,10.87647521]
[1760339150327,27.88728093,197.43,197.36,10.87647521]
[1760339150633,27.88728093,197.43,197.36,6.40728093]
[1760339150634,7.08728093,197.42,197.36,6.40728093]
[1760339150927,0.68,197.41,197.34,16.62385173]
[1760339151106,0.68,197.41,197.38,6.40728093]
[1760339151307,25.86511235,197.43,197.4,6.40728093]
[1760339151527,0.68,197.42,197.4,6.40728093]
[1760339151806,0.10373662,197.41,197.4,6.40728093]
[1760339152911,0.10373662,197.41,197.39,6.40728093]
[1760339153624,0.10373662,197.41,197.38,17.28375614]
[1760339153834,0.10373662,197.41,197.38,10.87647521]
[1760339154022,5.16950218,197.41,197.35,5.06694464]
[1760339154210,5.16950218,197.41,197.31,33.47000057]
[1760339154211,6.40728093,197.38,197.32,11.47519092]
[1760339154417,0.68,197.37,197.33,10.87647521]
[1760339154628,0.68,197.36,197.33,10.87647521]
[1760339154830,0.68,197.35,197.32,10.87647521]
[1760339155628,0.68,197.34,197.27,6.40728093]
[1760339155821,0.68,197.34,197.29,6.40728093]
[1760339156121,0.68,197.34,197.3,10.87647521]
[1760339156623,0.68,197.33,197.3,10.87647521]
[1760339158014,0.68,197.33,197.3,20.43890139]
[1760339158514,5.74714483,197.35,197.3,20.43890139]
[1760339158716,0.68,197.34,197.3,20.43890139]
[1760339158912,20.8,197.35,197.32,9.56242618]
[1760339159132,20.8,197.35,197.32,20.43890139]
[1760339159839,0.68,197.35,197.29,5.06865443]
[1760339160140,0.68,197.34,197.3,20.43890139]
[1760339160440,0.68,197.33,197.3,20.43890139]
[1760339160737,35.42936877,197.36,197.31,9.56242618]
[1760339160926,25.86694259,197.36,197.33,9.56242618]
[1760339161124,0.68,197.35,197.31,9.56242618]
[1760339161922,25.86694259,197.36,197.32,9.56242618]
[1760339162124,5.74725899,197.35,197.31,9.56242618]
[1760339163035,5.74725899,197.35,197.3,9.56242618]
[1760339163241,5.74725899,197.35,197.3,20.43890139]
[1760339163242,0.68,197.34,197.3,20.43890139]
[1760339163833,5.06725899,197.35,197.3,20.43890139]
[1760339164134,5.06842372,197.3,197.25,11.07647521]
[1760339164445,0.68,197.29,197.25,16.14616047]
[1760339165041,0.68,197.29,197.25,25.70858665]
[1760339165656,15.3108236,197.31,197.25,25.70858665]
[1760339166027,5.74839742,197.31,197.26,9.56242618]
[1760339166225,10.24242618,197.3,197.25,0.2]
[1760339166631,0.68,197.29,197.25,0.2]
[1760339167429,5.74893755,197.28,197.25,0.2]
[1760339167824,5.74893755,197.28,197.25,9.76242618]
[1760339168032,5.06893755,197.28,197.25,9.76242618]
[1760339168832,5.06842372,197.3,197.25,9.76242618]
[1760339169033,0.68,197.29,197.25,9.76242618]
[1760339169630,5.06842372,197.3,197.26,9.56242618]
[1760339169831,20.8,197.31,197.27,0.68]
[1760339170027,0.1094715,197.48,197.3,9.56242618]
[1760339170028,0.68,197.35,197.3,9.56242618]
[1760339170223,0.68,197.35,197.31,9.56242618]
[1760339170426,0.68,197.38,197.33,9.56242618]
[1760339170651,0.68,197.38,197.34,9.56242618]
[1760339170855,5.74637601,197.38,197.34,9.56242618]
[1760339171046,5.74637601,197.38,197.32,5.06785884]
[1760339171047,5.74637601,197.38,197.35,9.56242618]
[1760339171248,5.06637601,197.38,197.35,9.56242618]
[1760339171563,5.74637601,197.38,197.34,9.56242618]
[1760339172053,0.10405866,197.36,197.34,9.56242618]
[1760339172228,5.85098265,197.36,197.33,9.56242618]